[Event "GrandPrix_30.05"]
[Site "Chess.com"]
[Date "2020.05.30"]
[Round "1"]
[White "Korchmar_Vasiliy"]
[Black "v-kazakouski"]
[Result "0-1"]
[WhiteElo "2063"]
[BlackElo "2399"]
[TimeControl "600+2"]
[EndTime "8:23:46 PDT"]
[Termination "v-kazakouski won by resignation"]

1. d4 {[%clk 0:10:01.9]} 1... Nf6 {[%clk 0:09:59.5]} 2. c4 {[%clk 0:10:02.5]}
2... e6 {[%clk 0:09:58.9]} 3. g3 {[%clk 0:10:03]} 3... d5 {[%clk 0:09:57.3]} 4.
Bg2 {[%clk 0:10:03.6]} 4... Bb4+ {[%clk 0:09:29.3]} 5. Nd2 {[%clk 0:10:03.7]}
5... O-O {[%clk 0:09:18.8]} 6. Nf3 {[%clk 0:10:02.4]} 6... dxc4 {[%clk
0:09:10.7]} 7. Qc2 {[%clk 0:09:57]} 7... Nc6 {[%clk 0:08:50.5]} 8. Qxc4 {[%clk
0:09:39.3]} 8... Qd5 {[%clk 0:08:48.1]} 9. O-O {[%clk 0:09:30.8]} 9... Re8
{[%clk 0:08:34.8]} 10. e3 {[%clk 0:08:36.3]} 10... Bd6 {[%clk 0:07:17.7]} 11. b3
{[%clk 0:07:01.4]} 11... Qh5 {[%clk 0:07:07.8]} 12. Bb2 {[%clk 0:07:00.9]} 12...
a5 {[%clk 0:06:46.6]} 13. a3 {[%clk 0:06:47.4]} 13... e5 {[%clk 0:05:48.4]} 14.
dxe5 {[%clk 0:06:11]} 14... Nxe5 {[%clk 0:05:47.7]} 15. Nxe5 {[%clk 0:06:11.9]}
15... Bxe5 {[%clk 0:05:48.1]} 16. Bxe5 {[%clk 0:06:13.8]} 16... Qxe5 {[%clk
0:05:41.4]} 17. Nf3 {[%clk 0:06:14.7]} 17... Qe7 {[%clk 0:05:36.7]} 18. Nd4
{[%clk 0:06:08.8]} 18... c6 {[%clk 0:05:07.2]} 19. b4 {[%clk 0:04:06]} 19... h5
{[%clk 0:04:20.2]} 20. h3 {[%clk 0:03:54.9]} 20... Bd7 {[%clk 0:03:36.6]} 21.
Rfb1 {[%clk 0:03:15.7]} 21... Ne4 {[%clk 0:03:00.7]} 22. Qc2 {[%clk 0:03:16.2]}
22... axb4 {[%clk 0:02:28.9]} 23. axb4 {[%clk 0:03:17.1]} 23... Rxa1 {[%clk
0:02:19.4]} 24. Rxa1 {[%clk 0:03:19]} 24... Ng5 {[%clk 0:02:19.8]} 25. h4 {[%clk
0:02:58.4]} 25... Ne6 {[%clk 0:02:18.4]} 26. Nxe6 {[%clk 0:02:04.9]} 26... Bxe6
{[%clk 0:02:17.5]} 27. Qc5 {[%clk 0:01:52]} 27... Qxc5 {[%clk 0:01:42.8]} 28.
bxc5 {[%clk 0:01:53.9]} 28... Rd8 {[%clk 0:01:44]} 29. Ra7 {[%clk 0:01:29.5]}
29... Rd7 {[%clk 0:01:37.4]} 30. Be4 {[%clk 0:01:16]} 30... g6 {[%clk
0:01:33.6]} 31. Kg2 {[%clk 0:01:16.6]} 31... Kg7 {[%clk 0:01:29.9]} 32. Kf3
{[%clk 0:01:16.3]} 32... Kf6 {[%clk 0:01:28.6]} 33. Kf4 {[%clk 0:01:17.2]} 33...
Rd2 {[%clk 0:01:22.9]} 34. f3 {[%clk 0:01:06.4]} 34... Rb2 {[%clk 0:01:21.2]}
35. Ra8 {[%clk 0:01:00.4]} 35... Rb4 {[%clk 0:01:07.1]} 36. Rd8 {[%clk
0:00:35.2]} 36... Bd5 {[%clk 0:00:50.4]} 37. Rd7 {[%clk 0:00:26.1]} 37... Ke6
{[%clk 0:00:39.6]} 38. Rc7 {[%clk 0:00:26.6]} 38... f5 {[%clk 0:00:38.2]} 39.
Kg5 {[%clk 0:00:18]} 39... fxe4 {[%clk 0:00:39.1]} 40. f4 {[%clk 0:00:19.6]}
40... b6 {[%clk 0:00:29.5]} 41. g4 {[%clk 0:00:10.1]} 41... bxc5 {[%clk
0:00:14.1]} 42. f5+ {[%clk 0:00:03.5]} 42... gxf5 {[%clk 0:00:14]} 43. gxf5+
{[%clk 0:00:05.4]} 43... Kd6 {[%clk 0:00:14.9]} 44. Ra7 {[%clk 0:00:04.3]} 44...
c4 {[%clk 0:00:14.7]} 45. f6 {[%clk 0:00:03.8]} 45... c3 {[%clk 0:00:13.5]} 46.
f7 {[%clk 0:00:05.2]} 46... Bxf7 {[%clk 0:00:07.3]} 47. Rxf7 {[%clk 0:00:05.4]}
47... c2 {[%clk 0:00:08.3]} 48. Rf6+ {[%clk 0:00:04.3]} 48... Kc7 {[%clk
0:00:05.5]} 49. Rf7+ {[%clk 0:00:03.9]} 49... Kb6 {[%clk 0:00:06.2]} 50. Rf1
{[%clk 0:00:04]} 50... Rb1 {[%clk 0:00:07]} 0-1

[Event "GrandPrix_30.05"]
[Site "Chess.com"]
[Date "2020.05.30"]
[Round "1"]
[White "Rakhmanov_Aleksandr"]
[Black "Korona_91"]
[Result "1-0"]
[WhiteElo "2446"]
[BlackElo "2095"]
[TimeControl "600+2"]
[EndTime "8:23:48 PDT"]
[Termination "Rakhmanov_Aleksandr won by resignation"]

1. d4 {[%clk 0:09:58.9]} 1... e6 {[%clk 0:09:57]} 2. c4 {[%clk 0:09:57.9]} 2...
f5 {[%clk 0:09:51.5]} 3. Nc3 {[%clk 0:09:58.4]} 3... Nf6 {[%clk 0:09:52.8]} 4.
e3 {[%clk 0:09:58.1]} 4... b6 {[%clk 0:09:53.4]} 5. Bd3 {[%clk 0:09:59.1]} 5...
Bb7 {[%clk 0:09:50.4]} 6. f3 {[%clk 0:10:00.1]} 6... Bb4 {[%clk 0:09:49.5]} 7.
Ne2 {[%clk 0:10:01.3]} 7... O-O {[%clk 0:09:49.5]} 8. a3 {[%clk 0:09:53.6]} 8...
Bxc3+ {[%clk 0:09:48.1]} 9. Nxc3 {[%clk 0:09:55.5]} 9... d6 {[%clk 0:09:13.2]}
10. O-O {[%clk 0:09:39.2]} 10... Nbd7 {[%clk 0:09:00.8]} 11. e4 {[%clk
0:09:29.4]} 11... fxe4 {[%clk 0:08:59.9]} 12. fxe4 {[%clk 0:09:31.3]} 12... e5
{[%clk 0:08:57.1]} 13. d5 {[%clk 0:09:32.2]} 13... Nc5 {[%clk 0:08:51.6]} 14.
Bc2 {[%clk 0:09:33.2]} 14... a5 {[%clk 0:08:51]} 15. Be3 {[%clk 0:09:07.6]}
15... Qd7 {[%clk 0:08:12.2]} 16. b4 {[%clk 0:08:26]} 16... axb4 {[%clk
0:08:09.4]} 17. axb4 {[%clk 0:08:26.1]} 17... Rxa1 {[%clk 0:08:08.5]} 18. Qxa1
{[%clk 0:08:28]} 18... Na6 {[%clk 0:08:08.6]} 19. Qb1 {[%clk 0:08:09.9]} 19...
Qg4 {[%clk 0:07:51.1]} 20. Bd2 {[%clk 0:07:14.1]} 20... h6 {[%clk 0:07:19.2]}
21. Nd1 {[%clk 0:06:22.4]} 21... Qe2 {[%clk 0:06:40.9]} 22. Rf2 {[%clk
0:06:05.9]} 22... Qh5 {[%clk 0:06:18.9]} 23. Ne3 {[%clk 0:05:50.3]} 23... Bc8
{[%clk 0:06:01.3]} 24. Qf1 {[%clk 0:05:31.3]} 24... Nb8 {[%clk 0:05:41.4]} 25.
c5 {[%clk 0:04:57.5]} 25... bxc5 {[%clk 0:05:41]} 26. bxc5 {[%clk 0:04:57.5]}
26... Ba6 {[%clk 0:05:05.7]} 27. Qb1 {[%clk 0:04:11.9]} 27... Nbd7 {[%clk
0:04:40.6]} 28. cxd6 {[%clk 0:03:52.4]} 28... cxd6 {[%clk 0:04:36.8]} 29. Bd1
{[%clk 0:03:53.4]} 29... Qg6 {[%clk 0:04:33.8]} 30. Nf5 {[%clk 0:03:52.1]} 30...
Kh7 {[%clk 0:04:27.5]} 31. Ne7 {[%clk 0:02:11]} 31... Qf7 {[%clk 0:04:13.2]} 32.
Nc6 {[%clk 0:02:11]} 32... Nc5 {[%clk 0:04:08.2]} 33. Bc2 {[%clk 0:02:11.5]}
33... Qh5 {[%clk 0:03:43.2]} 34. h3 {[%clk 0:01:50.1]} 34... Qh4 {[%clk
0:03:12.2]} 35. Be3 {[%clk 0:01:50.1]} 35... Bc8 {[%clk 0:02:46.7]} 36. Bxc5
{[%clk 0:01:30.2]} 36... dxc5 {[%clk 0:02:47.1]} 37. Nxe5 {[%clk 0:01:31.4]}
37... Qg3 {[%clk 0:02:25.5]} 38. Nc4 {[%clk 0:01:03]} 38... Ng4 {[%clk
0:01:04.4]} 39. Rxf8 {[%clk 0:00:33.5]} 39... Qh2+ {[%clk 0:01:03.8]} 40. Kf1
{[%clk 0:00:34.8]} 40... Qh1+ {[%clk 0:01:05.1]} 41. Ke2 {[%clk 0:00:36.3]}
41... Qxg2+ {[%clk 0:01:05.8]} 42. Kd1 {[%clk 0:00:28.3]} 42... Nf2+ {[%clk
0:01:01.4]} 43. Kc1 {[%clk 0:00:21.1]} 43... Qg5+ {[%clk 0:00:20.1]} 44. Kb2
{[%clk 0:00:18.1]} 44... Ba6 {[%clk 0:00:19.1]} 45. e5+ {[%clk 0:00:18.4]} 45...
g6 {[%clk 0:00:20.3]} 46. Rxf2 {[%clk 0:00:11.7]} 46... Bxc4 {[%clk 0:00:20.9]}
47. Qe1 {[%clk 0:00:12.8]} 47... Qd8 {[%clk 0:00:17.9]} 48. e6 {[%clk
0:00:11.3]} 48... Qb6+ {[%clk 0:00:17.2]} 49. Kc1 {[%clk 0:00:12.2]} 49... Qa6
{[%clk 0:00:17]} 50. Rf7+ {[%clk 0:00:12.6]} 50... Kg8 {[%clk 0:00:17.3]} 51.
Qc3 {[%clk 0:00:14.1]} 1-0

[Event "GrandPrix_30.05"]
[Site "Chess.com"]
[Date "2020.05.30"]
[Round "1"]
[White "RovenVogel"]
[Black "Tokarev_Sergey"]
[Result "1-0"]
[WhiteElo "2324"]
[BlackElo "1997"]
[TimeControl "600+2"]
[EndTime "8:23:52 PDT"]
[Termination "RovenVogel won by resignation"]

1. d4 {[%clk 0:10:00.2]} 1... e6 {[%clk 0:09:59]} 2. c4 {[%clk 0:09:58.4]} 2...
d5 {[%clk 0:09:57.2]} 3. Nc3 {[%clk 0:09:58.2]} 3... Nf6 {[%clk 0:09:43.3]} 4.
cxd5 {[%clk 0:09:58]} 4... exd5 {[%clk 0:09:41.9]} 5. Bg5 {[%clk 0:09:57.3]}
5... Be7 {[%clk 0:09:39.6]} 6. e3 {[%clk 0:09:51.7]} 6... h6 {[%clk 0:09:18]} 7.
Bf4 {[%clk 0:09:43.6]} 7... O-O {[%clk 0:09:09.5]} 8. Bd3 {[%clk 0:09:40.5]}
8... Bg4 {[%clk 0:09:05.4]} 9. Nf3 {[%clk 0:09:04.3]} 9... c5 {[%clk 0:08:54.1]}
10. dxc5 {[%clk 0:08:47.2]} 10... Bxc5 {[%clk 0:08:51.3]} 11. O-O {[%clk
0:07:59.4]} 11... Nc6 {[%clk 0:08:47.2]} 12. h3 {[%clk 0:07:41.4]} 12... Be6
{[%clk 0:07:26.5]} 13. Nb5 {[%clk 0:07:38.8]} 13... Rc8 {[%clk 0:06:59.8]} 14.
Rc1 {[%clk 0:07:35.7]} 14... Be7 {[%clk 0:06:26.6]} 15. Nbd4 {[%clk 0:07:16]}
15... Qd7 {[%clk 0:05:29.6]} 16. Bb5 {[%clk 0:07:08.7]} 16... Bd6 {[%clk
0:05:18]} 17. Ne5 {[%clk 0:06:40.6]} 17... Bxe5 {[%clk 0:05:15.2]} 18. Bxe5
{[%clk 0:06:39.4]} 18... Ne4 {[%clk 0:05:05.8]} 19. Qh5 {[%clk 0:06:07.5]} 19...
a6 {[%clk 0:04:43.1]} 20. Nxc6 {[%clk 0:04:58.5]} 20... axb5 {[%clk 0:04:05.9]}
21. Nd4 {[%clk 0:04:58.9]} 21... Rxc1 {[%clk 0:04:06.1]} 22. Rxc1 {[%clk
0:04:59]} 22... Rc8 {[%clk 0:03:59.5]} 23. Qd1 {[%clk 0:04:49.2]} 23... b4
{[%clk 0:03:17.4]} 24. Qe1 {[%clk 0:04:33.7]} 24... Rxc1 {[%clk 0:02:52.8]} 25.
Qxc1 {[%clk 0:04:35.6]} 25... Nd6 {[%clk 0:02:29]} 26. Bxd6 {[%clk 0:04:06.2]}
26... Qxd6 {[%clk 0:02:30.9]} 27. Qd2 {[%clk 0:03:23.2]} 27... Bd7 {[%clk
0:02:12.5]} 28. Ne2 {[%clk 0:03:03.1]} 28... Qc5 {[%clk 0:02:06]} 29. Nf4 {[%clk
0:02:55.4]} 29... Bc6 {[%clk 0:02:07.3]} 30. Nd3 {[%clk 0:02:48]} 30... Qc4
{[%clk 0:01:41.3]} 31. Nxb4 {[%clk 0:02:47.6]} 31... g6 {[%clk 0:01:27.4]} 32.
b3 {[%clk 0:02:45.2]} 32... Qe4 {[%clk 0:01:24.4]} 33. Qd4 {[%clk 0:02:37.8]}
33... Qb1+ {[%clk 0:01:21]} 34. Kh2 {[%clk 0:02:37.8]} 34... Qf5 {[%clk
0:01:16.2]} 35. Nd3 {[%clk 0:02:20.5]} 35... g5 {[%clk 0:01:03.9]} 36. a4 {[%clk
0:02:16.6]} 36... Qe6 {[%clk 0:00:58.4]} 37. Kg1 {[%clk 0:02:15]} 37... Qd6
{[%clk 0:00:57.7]} 38. Nb4 {[%clk 0:02:05.1]} 38... Qg6 {[%clk 0:00:53.1]} 39.
Qd3 {[%clk 0:01:39.7]} 39... Qd6 {[%clk 0:00:47.8]} 40. Nc2 {[%clk 0:01:38.3]}
40... Qc5 {[%clk 0:00:47]} 41. Nd4 {[%clk 0:01:37.2]} 41... Bd7 {[%clk
0:00:48.4]} 42. Qd2 {[%clk 0:01:34.3]} 42... Kg7 {[%clk 0:00:46.1]} 43. Ne2
{[%clk 0:01:30]} 43... f6 {[%clk 0:00:44.5]} 44. Qc3 {[%clk 0:01:28]} 44... Qa3
{[%clk 0:00:43.7]} 45. Qc7 {[%clk 0:01:25.3]} 45... Qa1+ {[%clk 0:00:44]} 46.
Nc1 {[%clk 0:01:17.8]} 46... Kg6 {[%clk 0:00:43.6]} 47. Qxd7 {[%clk 0:01:14.8]}
47... Qxc1+ {[%clk 0:00:43.6]} 48. Kh2 {[%clk 0:01:16.7]} 48... Qc2 {[%clk
0:00:39.5]} 49. Qxd5 {[%clk 0:01:07.8]} 49... Qxf2 {[%clk 0:00:38.7]} 50. Qe4+
{[%clk 0:01:05.8]} 50... Qf5 {[%clk 0:00:26.3]} 51. Qxf5+ {[%clk 0:00:35]} 51...
Kxf5 {[%clk 0:00:28.2]} 52. Kg3 {[%clk 0:00:36.6]} 52... Ke4 {[%clk 0:00:27.8]}
53. Kg4 {[%clk 0:00:19.8]} 53... f5+ {[%clk 0:00:27.4]} 54. Kh5 {[%clk
0:00:19.5]} 54... Kxe3 {[%clk 0:00:28.2]} 55. Kxh6 {[%clk 0:00:20]} 55... g4
{[%clk 0:00:25.6]} 56. hxg4 {[%clk 0:00:18]} 56... fxg4 {[%clk 0:00:27.5]} 57.
Kg5 {[%clk 0:00:16.3]} 57... g3 {[%clk 0:00:28.7]} 58. Kh4 {[%clk 0:00:16.1]}
58... Kf2 {[%clk 0:00:30]} 59. Kh3 {[%clk 0:00:16.9]} 1-0

[Event "GrandPrix_30.05"]
[Site "Chess.com"]
[Date "2020.05.30"]
[Round "1"]
[White "kirillshevchenko"]
[Black "Kostya_Nikologorskiy"]
[Result "1-0"]
[WhiteElo "2754"]
[BlackElo "2207"]
[TimeControl "600+2"]
[EndTime "8:23:59 PDT"]
[Termination "kirillshevchenko won by resignation"]

1. e4 {[%clk 0:10:01.9]} 1... e6 {[%clk 0:10:00.7]} 2. d4 {[%clk 0:10:01.7]}
2... d5 {[%clk 0:10:02.1]} 3. Nc3 {[%clk 0:10:02.8]} 3... Bb4 {[%clk 0:10:01.9]}
4. e5 {[%clk 0:10:02.5]} 4... c5 {[%clk 0:10:01.5]} 5. a3 {[%clk 0:10:03.6]}
5... Bxc3+ {[%clk 0:10:02.7]} 6. bxc3 {[%clk 0:10:05.5]} 6... Ne7 {[%clk
0:10:02.7]} 7. h4 {[%clk 0:10:06.1]} 7... Qc7 {[%clk 0:09:55]} 8. Rb1 {[%clk
0:10:02.2]} 8... Bd7 {[%clk 0:09:45.9]} 9. h5 {[%clk 0:09:36.3]} 9... h6 {[%clk
0:09:23.2]} 10. Qg4 {[%clk 0:07:38]} 10... cxd4 {[%clk 0:08:46.9]} 11. Qxg7
{[%clk 0:07:27.8]} 11... Rg8 {[%clk 0:08:46.3]} 12. Qxh6 {[%clk 0:07:24.9]}
12... Nf5 {[%clk 0:08:20.1]} 13. Qf4 {[%clk 0:06:59.5]} 13... Qxc3+ {[%clk
0:07:55.3]} 14. Bd2 {[%clk 0:06:08.2]} 14... Qxc2 {[%clk 0:07:50.4]} 15. Rc1
{[%clk 0:04:48.7]} 15... Qe4+ {[%clk 0:07:49]} 16. Qxe4 {[%clk 0:03:45.7]} 16...
dxe4 {[%clk 0:07:50.9]} 17. g4 {[%clk 0:03:45.5]} 17... e3 {[%clk 0:07:20.9]}
18. gxf5 {[%clk 0:02:38.3]} 18... exd2+ {[%clk 0:07:19.2]} 19. Kxd2 {[%clk
0:02:40.2]} 19... exf5 {[%clk 0:07:14.7]} 20. Nf3 {[%clk 0:02:26.8]} 20... Nc6
{[%clk 0:07:01.1]} 21. Bb5 {[%clk 0:01:38]} 21... a6 {[%clk 0:06:45.7]} 22. Bxc6
{[%clk 0:01:33.9]} 22... Bxc6 {[%clk 0:06:47.6]} 23. Rhg1 {[%clk 0:01:34.9]}
23... Rxg1 {[%clk 0:05:32.5]} 24. Rxg1 {[%clk 0:01:34.7]} 24... O-O-O {[%clk
0:05:33.8]} 25. Nh4 {[%clk 0:01:06.3]} 25... Rh8 {[%clk 0:05:11]} 26. Rg5 {[%clk
0:01:06.1]} 26... f4 {[%clk 0:04:28]} 27. Nf5 {[%clk 0:00:59.9]} 27... Bf3
{[%clk 0:04:18.7]} 28. h6 {[%clk 0:00:51.4]} 28... Kd7 {[%clk 0:03:50.8]} 29.
Nxd4 {[%clk 0:00:46.7]} 29... Be4 {[%clk 0:03:39.9]} 30. Rh5 {[%clk 0:00:25.9]}
30... Ke7 {[%clk 0:03:18.7]} 31. Rh4 {[%clk 0:00:21.9]} 31... Bg6 {[%clk
0:03:01.7]} 32. Ke2 {[%clk 0:00:13.2]} 32... f6 {[%clk 0:01:59.9]} 33. e6 {[%clk
0:00:12.9]} 33... Kd6 {[%clk 0:02:01]} 34. Rxf4 {[%clk 0:00:08.6]} 34... Rxh6
{[%clk 0:02:01.9]} 35. Ke3 {[%clk 0:00:04.6]} 35... f5 {[%clk 0:01:38.7]} 36.
Rxf5 {[%clk 0:00:03.8]} 36... Rh3+ {[%clk 0:01:21.3]} 37. Rf3 {[%clk 0:00:04.4]}
37... Rh4 {[%clk 0:01:20.8]} 38. Rf4 {[%clk 0:00:04.3]} 38... Rh3+ {[%clk
0:01:20.3]} 39. f3 {[%clk 0:00:04.2]} 39... Rh5 {[%clk 0:01:13.9]} 40. Rf6
{[%clk 0:00:04.2]} 40... Be8 {[%clk 0:01:11.3]} 41. Kf4 {[%clk 0:00:04]} 41...
Rh4+ {[%clk 0:01:11.5]} 42. Ke3 {[%clk 0:00:04.6]} 42... Rh1 {[%clk 0:01:09.6]}
43. Rf8 {[%clk 0:00:04.1]} 43... Bh5 {[%clk 0:01:01.3]} 44. Rd8+ {[%clk
0:00:04.5]} 44... Ke7 {[%clk 0:00:52.5]} 45. Rd7+ {[%clk 0:00:05.3]} 45... Kf6
{[%clk 0:00:54]} 46. Rxb7 {[%clk 0:00:06.6]} 46... Re1+ {[%clk 0:00:53.6]} 47.
Kf4 {[%clk 0:00:07.5]} 47... Rd1 {[%clk 0:00:52.7]} 48. Rd7 {[%clk 0:00:08]}
48... Ra1 {[%clk 0:00:45.4]} 49. Rh7 {[%clk 0:00:04.4]} 49... Be8 {[%clk
0:00:34]} 50. Rh8 {[%clk 0:00:04.5]} 50... Ba4 {[%clk 0:00:31.3]} 51. Rh6+
{[%clk 0:00:05.2]} 51... Ke7 {[%clk 0:00:29.5]} 52. Nf5+ {[%clk 0:00:06.2]}
52... Kd8 {[%clk 0:00:30.8]} 53. e7+ {[%clk 0:00:07.1]} 53... Kc7 {[%clk
0:00:25.6]} 54. Rxa6 {[%clk 0:00:08.4]} 54... Bb5 {[%clk 0:00:20.4]} 55. Ra8
{[%clk 0:00:09.2]} 55... Re1 {[%clk 0:00:20.2]} 56. Ne3 {[%clk 0:00:07.5]} 56...
Bc6 {[%clk 0:00:19.2]} 57. e8=Q {[%clk 0:00:08.3]} 57... Bxe8 {[%clk 0:00:20.8]}
58. Rxe8 {[%clk 0:00:09.2]} 1-0

[Event "GrandPrix_30.05"]
[Site "Chess.com"]
[Date "2020.05.30"]
[Round "1"]
[White "Misterlose0"]
[Black "Lion_DL"]
[Result "1-0"]
[WhiteElo "1874"]
[BlackElo "2163"]
[TimeControl "600+2"]
[EndTime "8:23:59 PDT"]
[Termination "Misterlose0 won by resignation"]

1. d4 {[%clk 0:10:01.9]} 1... Nf6 {[%clk 0:09:59.4]} 2. c4 {[%clk 0:10:01]} 2...
c5 {[%clk 0:10:00.5]} 3. d5 {[%clk 0:10:01.9]} 3... e5 {[%clk 0:10:01.4]} 4. Nc3
{[%clk 0:09:57.1]} 4... d6 {[%clk 0:10:02.6]} 5. e4 {[%clk 0:09:57.6]} 5... a6
{[%clk 0:10:03.4]} 6. Bd3 {[%clk 0:09:12.7]} 6... g6 {[%clk 0:09:30.5]} 7. f4
{[%clk 0:09:04.9]} 7... Nbd7 {[%clk 0:08:40.6]} 8. Nf3 {[%clk 0:09:04.2]} 8...
Qe7 {[%clk 0:08:40.4]} 9. O-O {[%clk 0:09:04.9]} 9... Bg7 {[%clk 0:08:37.8]} 10.
fxe5 {[%clk 0:08:51.7]} 10... Nxe5 {[%clk 0:08:37]} 11. Nxe5 {[%clk 0:08:52.8]}
11... Qxe5 {[%clk 0:08:38.1]} 12. Bf4 {[%clk 0:08:53.6]} 12... Qe7 {[%clk
0:08:28.5]} 13. Qf3 {[%clk 0:05:01.5]} 13... Ng4 {[%clk 0:07:34.2]} 14. Qg3
{[%clk 0:03:55.5]} 14... Ne5 {[%clk 0:07:27.7]} 15. Bg5 {[%clk 0:03:55.5]} 15...
f6 {[%clk 0:07:14.5]} 16. Bd2 {[%clk 0:03:52]} 16... O-O {[%clk 0:07:11.1]} 17.
Rae1 {[%clk 0:03:43.4]} 17... Bd7 {[%clk 0:06:57.5]} 18. a4 {[%clk 0:03:30.6]}
18... Rf7 {[%clk 0:06:09.1]} 19. h4 {[%clk 0:03:01.4]} 19... Kh8 {[%clk
0:05:28.5]} 20. Rf2 {[%clk 0:02:47.5]} 20... Raf8 {[%clk 0:05:14.3]} 21. Ref1
{[%clk 0:02:48.5]} 21... Qe8 {[%clk 0:03:32.2]} 22. Bf4 {[%clk 0:02:33.3]} 22...
Bxa4 {[%clk 0:02:55]} 23. h5 {[%clk 0:02:22.7]} 23... gxh5 {[%clk 0:02:41.5]}
24. Be2 {[%clk 0:01:53.4]} 24... Re7 {[%clk 0:02:20.7]} 25. Bxe5 {[%clk
0:01:01.8]} 25... Rxe5 {[%clk 0:02:17.4]} 26. Rf5 {[%clk 0:01:03.7]} 26... Bd7
{[%clk 0:02:04.6]} 27. Bxh5 {[%clk 0:00:58.2]} 27... Qe7 {[%clk 0:01:52.8]} 28.
Rxe5 {[%clk 0:00:25.5]} 28... fxe5 {[%clk 0:01:54.7]} 29. Rxf8+ {[%clk
0:00:25.3]} 29... Qxf8 {[%clk 0:01:56.2]} 30. Bg4 {[%clk 0:00:25.8]} 30... Bxg4
{[%clk 0:01:27.3]} 31. Qxg4 {[%clk 0:00:27.7]} 31... Bh6 {[%clk 0:01:28.7]} 32.
Qf5 {[%clk 0:00:15.9]} 32... Qxf5 {[%clk 0:01:00.7]} 33. exf5 {[%clk 0:00:17.8]}
33... Be3+ {[%clk 0:00:59.5]} 34. Kf1 {[%clk 0:00:17.3]} 34... Bd4 {[%clk
0:01:00.5]} 35. Ne4 {[%clk 0:00:18.8]} 35... Bxb2 {[%clk 0:01:00.8]} 36. Nxd6
{[%clk 0:00:19.5]} 36... Kg7 {[%clk 0:00:42.2]} 37. Nxb7 {[%clk 0:00:18.9]}
37... Bd4 {[%clk 0:00:41.9]} 38. d6 {[%clk 0:00:19.1]} 38... e4 {[%clk
0:00:35.1]} 39. d7 {[%clk 0:00:18.3]} 39... Bf6 {[%clk 0:00:36.6]} 40. d8=Q
{[%clk 0:00:09.7]} 40... Bxd8 {[%clk 0:00:37.8]} 41. Nxd8 {[%clk 0:00:11.6]}
41... a5 {[%clk 0:00:39.4]} 42. Ne6+ {[%clk 0:00:13]} 42... Kf6 {[%clk
0:00:39.8]} 43. Nxc5 {[%clk 0:00:14.9]} 43... Kxf5 {[%clk 0:00:40.8]} 44. Ke2
{[%clk 0:00:16.1]} 44... Ke5 {[%clk 0:00:39.6]} 45. Ke3 {[%clk 0:00:17.4]} 45...
h5 {[%clk 0:00:39.3]} 46. Nxe4 {[%clk 0:00:18]} 46... a4 {[%clk 0:00:40]} 47.
Nc3 {[%clk 0:00:19.6]} 47... a3 {[%clk 0:00:41]} 48. g3 {[%clk 0:00:21.2]} 48...
Kf5 {[%clk 0:00:39.7]} 49. c5 {[%clk 0:00:16.5]} 49... Ke5 {[%clk 0:00:40.1]}
50. Kd3 {[%clk 0:00:17.8]} 50... a2 {[%clk 0:00:33.1]} 51. Nxa2 {[%clk
0:00:15.8]} 51... Kd5 {[%clk 0:00:35]} 52. Ke3 {[%clk 0:00:14]} 52... Kxc5
{[%clk 0:00:36.3]} 53. Kf4 {[%clk 0:00:15.2]} 53... h4 {[%clk 0:00:37.6]} 54.
gxh4 {[%clk 0:00:17.1]} 54... Kd6 {[%clk 0:00:38.3]} 55. Kg5 {[%clk 0:00:17.3]}
55... Ke7 {[%clk 0:00:39.7]} 56. h5 {[%clk 0:00:16.1]} 56... Kf7 {[%clk
0:00:40.9]} 57. Nc3 {[%clk 0:00:18]} 57... Kg7 {[%clk 0:00:42.2]} 58. Ne4 {[%clk
0:00:19.1]} 58... Kh7 {[%clk 0:00:43.6]} 59. Ng3 {[%clk 0:00:21]} 59... Kg7
{[%clk 0:00:44.8]} 60. Ne2 {[%clk 0:00:22.9]} 60... Kh7 {[%clk 0:00:46.7]} 61.
Nf4 {[%clk 0:00:24.8]} 61... Kg7 {[%clk 0:00:47.9]} 62. Nd5 {[%clk 0:00:26.7]}
62... Kh7 {[%clk 0:00:49.8]} 63. Nf6+ {[%clk 0:00:27.4]} 63... Kg7 {[%clk
0:00:51.7]} 64. h6+ {[%clk 0:00:18.9]} 64... Kh8 {[%clk 0:00:53.6]} 65. Nd7
{[%clk 0:00:17.7]} 65... Kh7 {[%clk 0:00:54.5]} 66. Ne5 {[%clk 0:00:17.6]} 66...
Kh8 {[%clk 0:00:55.5]} 67. Kg6 {[%clk 0:00:19.5]} 67... Kg8 {[%clk 0:00:56.5]}
68. h7+ {[%clk 0:00:19.4]} 1-0